bitfinex/quotes_BTCUSD_20240717
["timestamp","ask_amount","ask_price","bid_price","bid_amount"]
[1721251733811,0.08674,64332.0,64331.0,0.466338]
[1721251734033,0.08674,64332.0,64331.0,0.62071974]
[1721251734595,0.00834,64332.0,64331.0,1.31550374]
[1721251734807,0.00834,64332.0,64331.0,1.46210707]
[1721251735242,0.00834,64332.0,64331.0,1.41210707]
[1721251735465,0.00834,64332.0,64331.0,1.46210707]
[1721251735914,0.00834,64332.0,64331.0,1.48410707]
[1721251736122,0.15244,64332.0,64331.0,0.30998507]
[1721251736343,0.15244,64332.0,64331.0,0.15438174]
[1721251736576,0.15244,64332.0,64331.0,0.16838174]
[1721251737255,0.15244,64332.0,64331.0,0.15438174]
[1721251737613,0.15244,64332.0,64331.0,0.16738174]
[1721251737827,0.15244,64332.0,64331.0,0.18138174]
[1721251737980,0.15244,64332.0,64331.0,0.26159147]
[1721251738185,0.00834,64332.0,64331.0,0.24759147]
[1721251738457,0.00834,64332.0,64331.0,1.35871347]
[1721251738750,0.00834,64332.0,64331.0,1.36771347]
[1721251739082,0.00834,64332.0,64331.0,0.24759147]
[1721251739083,0.15244,64332.0,64331.0,0.24759147]
[1721251739289,0.15244,64332.0,64331.0,0.16738174]
[1721251739401,0.15244,64332.0,64331.0,0.16338174]
[1721251739602,0.929657,64332.0,64331.0,0.023]
[1721251739801,0.929657,64332.0,64331.0,0.009]
[1721251740207,0.929657,64332.0,64331.0,0.022]
[1721251740693,0.463327,64332.0,64319.0,0.155475]
[1721251740837,0.1441,64324.0,64320.0,0.23212124]
[1721251741060,0.319227,64332.0,64320.0,0.23212124]
[1721251741061,0.29957,64321.0,64320.0,0.0777395]
[1721251741338,0.29957,64321.0,64306.0,0.311012]
[1721251741339,0.155473,64320.0,64310.0,0.155496]
[1721251741544,0.1441,64316.0,64311.0,0.15717574]
[1721251742245,0.1441,64314.0,64311.0,0.15717574]
[1721251742449,0.1441,64314.0,64312.0,0.04681747]
[1721251742658,0.1441,64314.0,64313.0,0.15717574]
[1721251742871,0.1441,64314.0,64313.0,0.15438174]
[1721251745073,0.1441,64314.0,64313.0,0.15738174]
[1721251745907,0.1441,64314.0,64313.0,0.16438174]
[1721251746207,0.1441,64314.0,64313.0,0.23215096]
[1721251750189,0.1441,64314.0,64313.0,0.38763996]
[1721251753212,0.1441,64314.0,64313.0,1.11763996]
[1721251756717,0.1441,64314.0,64313.0,0.96215096]
[1721251756923,0.1441,64314.0,64313.0,0.98215096]
[1721251758154,0.1441,64314.0,64313.0,0.23215096]
[1721251762061,0.1441,64314.0,64313.0,1.06215096]
[1721251763423,0.139,64325.0,64313.0,1.37312996]
[1721251763620,0.294461,64325.0,64316.0,0.155482]
[1721251763862,0.294461,64325.0,64317.0,0.15438174]
[1721251764082,0.139,64325.0,64320.0,0.310941]
[1721251764290,0.139,64325.0,64321.0,0.23200851]
[1721251764510,0.139,64325.0,64321.0,0.38747751]
[1721251764719,0.14,64325.0,64321.0,0.38747751]
[1721251765241,0.139,64325.0,64322.0,0.155467]
[1721251765619,0.139,64325.0,64323.0,0.41078259]
[1721251766485,0.00834,64332.0,64331.0,0.155446]
[1721251766662,0.00834,64332.0,64331.0,0.30982774]
[1721251766862,0.00834,64332.0,64331.0,0.62071974]
[1721251767074,0.00834,64332.0,64331.0,1.02477321]
[1721251768117,0.00834,64332.0,64331.0,1.33566521]
[1721251768322,0.00834,64332.0,64331.0,1.34466521]
[1721251768724,0.00834,64332.0,64331.0,1.34566521]
[1721251769049,0.00834,64332.0,64331.0,1.34466521]
[1721251769723,0.00834,64332.0,64331.0,1.45185244]
[1721251769923,0.00834,64332.0,64331.0,1.46185244]
[1721251770081,0.00834,64332.0,64331.0,1.44785244]
[1721251770282,0.00834,64332.0,64331.0,1.43785244]
[1721251770486,0.00834,64342.0,64341.0,0.466264]
[1721251770777,0.00834,64342.0,64341.0,0.97811514]
[1721251772122,0.00834,64342.0,64341.0,0.67727214]
[1721251772329,0.00834,64342.0,64341.0,0.98811514]
[1721251772971,0.00834,64342.0,64341.0,0.97811514]
[1721251773173,0.00834,64342.0,64341.0,0.99511514]
[1721251773531,0.00834,64342.0,64341.0,0.98511514]
[1721251773756,0.00834,64342.0,64341.0,0.97811514]
[1721251773967,0.00834,64342.0,64341.0,0.98511514]
[1721251774827,0.00834,64342.0,64341.0,0.99511514]
[1721251776148,0.08551479,64342.0,64341.0,0.21800814]
[1721251777063,0.07551479,64342.0,64341.0,0.21800814]
[1721251777940,0.0654,64343.0,64341.0,0.21800814]
[1721251778089,0.0654,64343.0,64342.0,0.22560465]
[1721251778292,0.0654,64343.0,64342.0,0.22281065]
[1721251778493,0.0654,64343.0,64342.0,0.06842891]
[1721251778726,0.0654,64343.0,64341.0,0.0636264]
[1721251778895,0.0654,64343.0,64341.0,0.21800814]
[1721251779100,0.0654,64343.0,64341.0,0.20100814]
[1721251779455,0.0654,64343.0,64342.0,0.009]
[1721251779654,0.0654,64343.0,64341.0,0.20700814]
[1721251779812,0.0654,64343.0,64342.0,0.03624361]
[1721251780614,0.0654,64343.0,64342.0,0.04224361]
[1721251782317,0.0654,64343.0,64342.0,0.05124361]
[1721251783847,0.0404,64343.0,64342.0,0.05124361]
[1721251785231,0.0404,64343.0,64342.0,0.36104435]
[1721251785634,0.0404,64343.0,64342.0,0.20562535]
[1721251793028,0.1368,64347.0,64342.0,0.20562535]
[1721251793229,0.1368,64347.0,64343.0,0.22902872]
[1721251793388,0.1368,64347.0,64343.0,0.22623472]
[1721251796051,0.1368,64347.0,64343.0,0.23123472]
[1721251796551,0.13763,64347.0,64343.0,0.23123472]
[1721251803620,0.293037,64347.0,64343.0,0.23123472]
[1721251803820,0.293037,64347.0,64344.0,0.04704437]
[1721251804052,0.293037,64347.0,64344.0,0.20142611]
[1721251805506,0.293037,64347.0,64344.0,0.20642611]
[1721251807158,0.293037,64347.0,64344.0,0.15938174]
[1721251809455,0.13763,64347.0,64344.0,0.15938174]
[1721251810396,0.18363776,64347.0,64344.0,0.15938174]
[1721251811298,0.04600776,64345.0,64344.0,0.15938174]
[1721251812272,0.04611201,64345.0,64344.0,0.15838174]
[1721251812482,0.06916802,64345.0,64344.0,0.19751645]
[1721251812856,0.22985403,64347.0,64344.0,0.19351645]
[1721251812857,0.13763,64347.0,64344.0,0.19351645]
[1721251813088,0.06921141,64345.0,64344.0,0.19351645]
[1721251813320,0.07311083,64346.0,64344.0,0.20051645]
[1721251813321,0.16539271,64346.0,64344.0,0.20051645]
[1721251813528,0.09228188,64346.0,64345.0,0.02480559]
[1721251813679,0.16538006,64346.0,64345.0,0.02480559]
[1721251814689,0.16538006,64346.0,64345.0,0.03080559]
[1721251815339,0.25298236,64347.0,64345.0,0.03080559]
[1721251815340,0.13763,64347.0,64345.0,0.03080559]
[1721251815539,0.07330221,64346.0,64345.0,0.03080559]
[1721251816173,0.07330221,64346.0,64345.0,0.03280559]
[1721251818531,0.13763,64347.0,64345.0,0.03280559]
[1721251818732,0.07330047,64346.0,64345.0,0.03280559]
[1721251819677,0.07330047,64346.0,64345.0,0.02680559]
[1721251819901,0.07330047,64346.0,64345.0,0.03080559]
[1721251820357,0.07330047,64346.0,64345.0,0.02680559]
[1721251820551,0.07330047,64346.0,64345.0,0.18518733]
[1721251820970,0.07330047,64346.0,64345.0,0.18618733]
[1721251821413,0.07330047,64346.0,64345.0,0.18518733]
[1721251821616,0.00083,64347.0,64345.0,0.18518733]
[1721251821815,0.11620633,64347.0,64346.0,0.23880941]
[1721251822289,0.18944943,64347.0,64346.0,0.23880941]
[1721251823098,0.33314943,64347.0,64346.0,0.08842767]
[1721251823309,0.4731801,64347.0,64346.0,0.004]
[1721251823624,0.3177731,64347.0,64346.0,0.004]
[1721251823791,0.4085454,64347.0,64346.0,0.004]
[1721251824239,0.2565731,64347.0,64346.0,0.004]
[1721251824443,0.2565731,64347.0,64346.0,0.0186007]
[1721251824651,0.2565731,64347.0,64346.0,0.0196007]
[1721251825254,0.24754579,64347.0,64346.0,0.0196007]
[1721251825932,0.24762341,64347.0,64346.0,0.0196007]
[1721251826102,0.87085923,64347.0,64346.0,0.0196007]
[1721251826303,0.87085923,64347.0,64346.0,0.005]
[1721251827278,0.92697594,64347.0,64346.0,0.005]
[1721251827677,0.92882179,64347.0,64346.0,0.005]
[1721251828119,0.95880494,64347.0,64346.0,0.005]
[1721251828322,0.9247886,64347.0,64346.0,0.005]
[1721251829080,1.2356026,64347.0,64346.0,0.005]
[1721251829287,1.58043264,64347.0,64346.0,0.005]
[1721251829431,1.70364997,64347.0,64346.0,0.005]
[1721251829610,0.61580097,64347.0,64343.0,0.000913]
[1721251829810,0.221514,64344.0,64343.0,0.000913]
[1721251830017,1.31254297,64344.0,64343.0,0.000913]
[1721251830410,1.63852925,64344.0,64343.0,0.000913]
[1721251831243,1.70993033,64344.0,64343.0,0.000913]
[1721251831474,1.57157369,64344.0,64343.0,0.000913]
[1721251831999,1.57157369,64344.0,64343.0,0.001913]
[1721251832000,1.69104638,64344.0,64343.0,0.001913]
[1721251832772,1.69104638,64344.0,64343.0,0.002913]
[1721251832973,1.69104638,64344.0,64343.0,0.001913]
[1721251833178,1.69704638,64344.0,64343.0,0.001913]
[1721251833731,1.71578057,64344.0,64343.0,0.001913]
[1721251833930,1.69646352,64344.0,64343.0,0.001913]
[1721251834299,1.69459166,64344.0,64343.0,0.001913]
[1721251834505,1.71415161,64344.0,64343.0,0.001913]
[1721251834746,1.71420696,64344.0,64343.0,0.001913]
[1721251835365,1.57593285,64344.0,64343.0,0.001913]
[1721251835618,1.83238016,64344.0,64343.0,0.001913]
[1721251835778,1.71410725,64344.0,64343.0,0.001913]
[1721251836232,1.57593285,64344.0,64343.0,0.001913]
[1721251836388,1.73031459,64344.0,64343.0,0.001913]
[1721251837402,1.73148645,64344.0,64343.0,0.001913]
[1721251840333,1.54308867,64344.0,64343.0,0.001913]
[1721251840553,1.45003081,64344.0,64343.0,0.001913]
[1721251840752,1.54257777,64344.0,64343.0,0.001913]
[1721251843679,1.39423542,64344.0,64343.0,0.001913]
[1721251843881,1.54246882,64344.0,64343.0,0.001913]
[1721251844284,1.54246885,64344.0,64343.0,0.001913]
[1721251844714,1.54249419,64344.0,64343.0,0.001913]
[1721251846244,1.54268304,64344.0,64343.0,0.001913]
[1721251846977,1.4501119,64344.0,64343.0,0.001913]
[1721251847157,1.54264459,64344.0,64343.0,0.001913]
[1721251850099,1.39423542,64344.0,64343.0,0.001913]
[1721251850319,1.54305612,64344.0,64343.0,0.001913]
[1721251852427,1.57709612,64344.0,64343.0,0.001913]
[1721251853361,1.57717591,64344.0,64343.0,0.001913]
[1721251853924,1.57703946,64344.0,64343.0,0.001913]
[1721251856534,1.57710103,64344.0,64343.0,0.001913]
[1721251858234,1.51100103,64344.0,64343.0,0.001913]
[1721251859629,1.45482611,64344.0,64343.0,0.001913]
[1721251859867,1.51230498,64344.0,64343.0,0.001913]
[1721251860196,1.51231187,64344.0,64343.0,0.001913]
[1721251862032,1.51225123,64344.0,64343.0,0.001913]
[1721251862434,1.34447672,64344.0,64343.0,0.001913]
[1721251862634,1.43715714,64344.0,64343.0,0.001913]
[1721251865179,1.28707542,64344.0,64343.0,0.001913]
[1721251865375,1.3781103,64344.0,64343.0,0.001913]
[1721251865551,1.43525385,64344.0,64343.0,0.001913]
[1721251868377,1.43516886,64344.0,64343.0,0.001913]
[1721251870220,1.57340698,64344.0,64343.0,0.001913]
[1721251870422,1.43516886,64344.0,64343.0,0.001913]
[1721251870619,1.57333053,64344.0,64343.0,0.001913]
[1721251871379,1.55503411,64344.0,64343.0,0.001913]
[1721251871531,1.37760767,64344.0,64343.0,0.001913]
[1721251871754,1.55516024,64344.0,64343.0,0.001913]
[1721251871900,1.28508455,64344.0,64343.0,0.001913]
[1721251872105,1.55496158,64344.0,64343.0,0.001913]
[1721251872525,1.43618327,64344.0,64343.0,0.001913]
[1721251872702,1.57454453,64344.0,64343.0,0.001913]
[1721251874252,1.55790719,64344.0,64343.0,0.001913]
[1721251874794,1.55790719,64344.0,64343.0,0.079913]
[1721251874795,1.06669541,64344.0,64343.0,0.079913]
[1721251875001,0.81511267,64344.0,64343.0,0.1507956]
[1721251875383,0.95354305,64344.0,64343.0,0.1507956]
[1721251875605,0.81511267,64344.0,64343.0,0.1507956]
[1721251876214,0.95354305,64344.0,64343.0,0.1507956]
[1721251876605,0.81511267,64344.0,64343.0,0.1507956]
[1721251878052,0.81660085,64344.0,64343.0,0.1507956]
[1721251881107,0.81701313,64344.0,64343.0,0.1507956]
[1721251881507,0.81693184,64344.0,64343.0,0.1507956]
[1721251882126,0.81741,64344.0,64343.0,0.1507956]
[1721251884266,0.72523074,64344.0,64343.0,0.1507956]
[1721251884468,0.81719892,64344.0,64343.0,0.1507956]
[1721251887467,0.72583818,64344.0,64343.0,0.1507956]
[1721251887619,0.81813303,64344.0,64343.0,0.1507956]
[1721251889848,0.78409303,64344.0,64343.0,0.1507956]
[1721251890475,0.69387483,64344.0,64343.0,0.1507956]
[1721251890675,0.785866,64344.0,64343.0,0.1507956]
[1721251891078,0.22763058,64344.0,64343.0,0.1507956]
[1721251891275,0.31962175,64344.0,64343.0,0.1507956]
[1721251891517,0.45191147,64344.0,64343.0,0.1507956]
[1721251891736,0.29649747,64344.0,64343.0,0.1507956]
[1721251893243,0.2624782,64344.0,64343.0,0.1507956]
[1721251893702,0.26323079,64344.0,64343.0,0.1507956]
[1721251894854,0.26323079,64344.0,64343.0,0.142713]
[1721251896562,0.31965703,64344.0,64343.0,0.142713]
[1721251896762,0.31866283,64344.0,64343.0,0.29709474]
[1721251897023,0.26223659,64344.0,64343.0,0.29709474]
[1721251897354,0.26223659,64344.0,64343.0,0.37352141]
[1721251898750,0.25723659,64344.0,64343.0,0.37252141]
[1721251899085,0.25723659,64344.0,64343.0,0.37352141]
[1721251899896,0.16620022,64344.0,64343.0,0.37352141]
[1721251900028,0.15752892,64344.0,64343.0,0.37352141]
[1721251900224,0.101,64344.0,64343.0,0.37352141]
[1721251900432,0.25906394,64344.0,64343.0,0.37352141]
[1721251900632,0.25806394,64344.0,64343.0,0.37352141]
[1721251900829,0.25806394,64344.0,64343.0,0.37252141]
[1721251901074,0.25906394,64344.0,64343.0,0.37252141]
[1721251901271,0.25906394,64344.0,64343.0,0.37352141]
[1721251901473,0.25806394,64344.0,64343.0,0.37252141]
[1721251901679,0.37339818,64344.0,64343.0,0.37252141]
[1721251901880,0.37439818,64344.0,64343.0,0.37452141]
[1721251902876,0.1830499,64344.0,64343.0,0.37452141]
[1721251903076,0.18226409,64344.0,64343.0,0.37452141]
[1721251904659,0.06696422,64344.0,64343.0,0.37452141]
[1721251905215,0.18226409,64344.0,64343.0,0.37452141]
[1721251905620,0.06696422,64344.0,64343.0,0.37452141]
[1721251906254,0.001,64344.0,64343.0,0.37452141]
[1721251906682,0.0671281,64344.0,64343.0,0.37452141]
[1721251909500,0.09324002,64344.0,64343.0,0.37452141]
[1721251909706,0.16020141,64344.0,64343.0,0.37452141]
[1721251910000,0.160951,64344.0,64343.0,0.37452141]
[1721251912558,0.001,64344.0,64343.0,0.37452141]
[1721251912763,0.0932338,64344.0,64343.0,0.37452141]
[1721251912996,0.16131167,64344.0,64343.0,0.37452141]
[1721251915732,0.001,64344.0,64343.0,0.37452141]
[1721251915937,0.16208591,64344.0,64343.0,0.37452141]
[1721251918365,0.16208591,64344.0,64343.0,0.52993841]
[1721251918587,0.16208591,64344.0,64343.0,0.37452141]
[1721251919064,0.001,64344.0,64343.0,0.37452141]
[1721251919274,0.09324491,64344.0,64343.0,0.37452141]
[1721251919476,0.16213192,64344.0,64343.0,0.37452141]
[1721251920090,0.16215545,64344.0,64343.0,0.52993841]
[1721251920501,0.16215545,64344.0,64343.0,0.84077241]
[1721251921334,0.001,64344.0,64343.0,0.84077241]
[1721251921718,0.0932382,64344.0,64343.0,0.84077241]
[1721251921887,0.0932382,64344.0,64343.0,1.15160641]
[1721251922088,0.16256198,64344.0,64343.0,1.15160641]
[1721251922460,0.07032378,64344.0,64343.0,1.15160641]
[1721251922688,0.16256198,64344.0,64343.0,1.15160641]
[1721251923077,0.07032378,64344.0,64343.0,1.15160641]
[1721251923661,0.001,64344.0,64343.0,1.15160641]
[1721251924657,0.07020517,64344.0,64343.0,1.15160641]
[1721251927709,0.07020523,64344.0,64343.0,1.15160641]
[1721251928103,0.001,64344.0,64343.0,1.15160641]
[1721251928306,0.07020515,64344.0,64343.0,1.15160641]
[1721251937145,0.07021818,64344.0,64343.0,1.15160641]
[1721251937547,0.001,64344.0,64343.0,1.15160641]
[1721251937753,0.07022195,64344.0,64343.0,1.15160641]
[1721251938196,0.07022156,64344.0,64343.0,1.15160641]
[1721251938603,0.001,64344.0,64343.0,1.15160641]
[1721251939492,0.07022517,64344.0,64343.0,1.15160641]
[1721251939659,0.001,64344.0,64343.0,1.15160641]
[1721251941668,0.001,64344.0,64343.0,1.01080641]
[1721251943924,0.06946685,64344.0,64343.0,1.01080641]
[1721251946832,0.16085116,64344.0,64343.0,1.01080641]
[1721251947089,0.001,64344.0,64343.0,1.01080641]
[1721251947325,0.09332728,64344.0,64343.0,1.01080641]
[1721251948037,0.16085025,64344.0,64343.0,1.01080641]
[1721251949972,0.16133777,64344.0,64343.0,1.01080641]
[1721251951178,0.001,64344.0,64343.0,1.01080641]
[1721251951418,0.001,64344.0,64343.0,1.11096889]
[1721251951649,0.001,64344.0,64343.0,1.01080641]
[1721251951883,0.00083,64345.0,64343.0,1.01080641]
[1721251951884,0.02383552,64348.0,64347.0,0.155407]
[1721251952107,0.02383552,64348.0,64347.0,0.37978388]
[1721251952566,0.063,64350.0,64348.0,0.155404]
[1721251952828,0.063,64350.0,64349.0,0.15438174]
[1721251952829,0.163,64350.0,64349.0,0.15438174]
[1721251955266,0.2473,64350.0,64349.0,0.15438174]
[1721251955507,0.2473,64350.0,64349.0,0.25462353]
[1721251955748,0.40502693,64350.0,64349.0,0.25462353]
[1721251955985,0.40551648,64350.0,64349.0,0.25462353]
[1721251956219,0.31323406,64350.0,64349.0,0.25462353]
[1721251956468,0.40563433,64350.0,64349.0,0.25462353]
[1721251957458,0.40563433,64350.0,64349.0,0.25562353]
[1721251959185,0.40574831,64350.0,64349.0,0.25562353]
[1721251960295,0.31351225,64350.0,64349.0,0.25562353]
[1721251960587,0.31433827,64350.0,64349.0,0.25562353]
[1721251962359,0.31434585,64350.0,64349.0,0.25562353]
[1721251965489,0.24513,64350.0,64349.0,0.25562353]
[1721251965697,0.31434597,64350.0,64349.0,0.25562353]
[1721251965899,0.24513,64350.0,64349.0,0.25562353]
[1721251966102,0.10083,64350.0,64349.0,0.25562353]
[1721251967088,0.14697281,64350.0,64349.0,0.25562353]
[1721251967471,0.10083,64350.0,64349.0,0.25562353]
[1721251967583,0.00083,64350.0,64349.0,0.41102553]
[1721251970662,0.04697026,64350.0,64349.0,0.41102553]
[1721251970867,0.10083,64350.0,64349.0,0.41102553]
[1721251971069,0.14697015,64350.0,64349.0,0.41102553]
[1721251971337,0.10083,64350.0,64349.0,0.41102553]
[1721251971750,0.14696995,64350.0,64349.0,0.41102553]
[1721251971999,0.10083,64350.0,64349.0,0.41102553]
[1721251972201,0.07003843,64350.0,64349.0,0.41102553]
[1721251972400,0.17003843,64350.0,64349.0,0.41102553]
[1721251974801,0.07003843,64350.0,64349.0,0.41102553]
[1721251975219,0.00083,64350.0,64349.0,0.41102553]
[1721251975403,0.07003987,64350.0,64349.0,0.41102553]
[1721251975866,0.07004031,64350.0,64349.0,0.41102553]
[1721251978246,0.00083,64350.0,64349.0,0.41102553]
[1721251978447,0.07004012,64350.0,64349.0,0.41102553]
[1721251980982,0.07004161,64350.0,64349.0,0.41102553]
[1721251983863,0.00083,64350.0,64349.0,0.41102553]
[1721251984072,0.07004668,64350.0,64349.0,0.41102553]
[1721251984297,0.17004668,64350.0,64349.0,0.41102553]
[1721251984491,0.10083,64350.0,64349.0,0.41102553]
[1721251985460,0.00083,64350.0,64349.0,0.41102553]
[1721251988923,0.17559169,64350.0,64349.0,0.41102553]
[1721251989130,0.25469169,64350.0,64349.0,0.41102553]
[1721251990073,0.25469169,64350.0,64349.0,0.41052553]
[1721251990271,0.2542597,64350.0,64349.0,0.41042553]
[1721251990468,0.2542597,64350.0,64349.0,0.72123053]
[1721251990693,0.2542597,64350.0,64349.0,0.72113053]
[1721251990909,0.2542597,64350.0,64349.0,0.72073053]
[1721251991095,0.2542597,64350.0,64349.0,0.72063053]
[1721251991295,0.34656524,64350.0,64349.0,0.40982553]
[1721251991497,0.34656524,64350.0,64349.0,0.40962553]
[1721251991701,0.34656524,64350.0,64349.0,0.40952553]
[1721251991917,0.34656524,64350.0,64349.0,0.40912553]
[1721251992291,0.34656524,64350.0,64349.0,0.40902553]
[1721251992489,0.34656524,64350.0,64349.0,0.40892553]
[1721251993468,0.17993,64350.0,64349.0,0.40892553]
[1721251993642,0.24661288,64350.0,64349.0,0.40892553]
[1721251994055,0.34661031,64350.0,64349.0,0.40892553]
[1721251995471,0.25428063,64350.0,64349.0,0.40892553]
[1721251996283,0.25428063,64350.0,64349.0,0.25664379]
[1721251996684,0.17993,64350.0,64349.0,0.25664379]
[1721251997146,0.35004155,64350.0,64349.0,0.25664379]
[1721251997533,0.25767404,64350.0,64349.0,0.25664379]
[1721251999328,0.17857404,64350.0,64349.0,0.33394379]
[1721251999537,0.29403343,64350.0,64349.0,0.33394379]
[1721251999922,0.29193333,64350.0,64349.0,0.33394379]
[1721252000094,0.29193333,64350.0,64349.0,0.25664379]
[1721252000296,0.2919367,64350.0,64349.0,0.25664379]
[1721252003127,0.29201738,64350.0,64349.0,0.25664379]
[1721252003534,0.29201757,64350.0,64349.0,0.25664379]
[1721252006143,0.10083,64350.0,64349.0,0.25664379]
[1721252006297,0.11630501,64350.0,64349.0,0.56744879]
[1721252006498,0.2923374,64350.0,64349.0,0.56744879]
[1721252006950,0.07686239,64350.0,64349.0,1.01765379]
[1721252007150,0.07012136,64350.0,64349.0,0.70684879]
[1721252007348,0.04701589,64350.0,64349.0,0.70684879]
[1721252008710,0.04701589,64350.0,64349.0,1.01765379]
[1721252009225,0.00083,64350.0,64349.0,1.01765379]
[1721252009432,0.04701114,64350.0,64349.0,1.01765379]
[1721252009852,0.04701114,64350.0,64349.0,2.01765379]
[1721252010272,0.00083,64350.0,64349.0,2.01765379]
[1721252020393,0.00083,64350.0,64349.0,1.95685379]
[1721252021193,0.00083,64350.0,64349.0,1.87825379]
[1721252026688,0.00083,64350.0,64349.0,1.87916679]
[1721252028452,0.00083,64350.0,64349.0,2.18997179]
[1721252028680,0.00083,64350.0,64349.0,1.87916679]
[1721252031848,0.00083,64350.0,64349.0,1.96086679]
[1721252032601,0.00083,64350.0,64349.0,2.05006679]
[1721252033227,0.00083,64350.0,64349.0,1.96086679]
[1721252033650,0.00083,64350.0,64349.0,1.95986679]
[1721252033867,0.00083,64350.0,64349.0,1.96086679]
[1721252034062,0.00083,64350.0,64349.0,1.96886679]
[1721252034282,0.00083,64350.0,64349.0,1.96786679]
[1721252034636,0.00083,64350.0,64349.0,1.97186679]
[1721252035914,0.07863,64350.0,64349.0,1.89016679]
[1721252036872,0.00083,64350.0,64349.0,2.11536679]
[1721252037079,0.00083,64350.0,64349.0,2.07528117]
[1721252037287,0.00083,64350.0,64349.0,1.98608117]
[1721252037486,0.06213,64350.0,64349.0,1.98608117]
[1721252038031,0.06213,64350.0,64349.0,1.98608016]
[1721252040625,0.06213,64350.0,64349.0,1.89016679]
[1721252040825,0.06213,64350.0,64349.0,1.9857478]
[1721252041228,0.06213,64350.0,64349.0,1.98574106]
[1721252042029,0.00083,64350.0,64349.0,2.2774228]
[1721252042236,0.00083,64350.0,64349.0,2.3666228]
[1721252042506,0.00083,64350.0,64349.0,2.6774278]
[1721252043119,0.00083,64350.0,64349.0,2.6734278]
[1721252043323,0.00083,64350.0,64349.0,2.56985353]
[1721252043531,0.00083,64350.0,64349.0,2.66934341]
[1721252043771,0.00083,64350.0,64349.0,2.68134341]
[1721252043952,0.00083,64350.0,64349.0,2.67734341]
[1721252044353,0.00083,64350.0,64349.0,2.68634341]
[1721252046390,0.00083,64350.0,64349.0,2.59085353]
[1721252046604,0.00083,64350.0,64349.0,2.68632634]
[1721252047165,0.00083,64350.0,64349.0,3.04713134]
[1721252047502,0.00083,64350.0,64349.0,3.45793634]
[1721252047725,0.00083,64350.0,64349.0,4.17715428]
[1721252047975,0.00834,64354.0,64353.0,1.337747]
[1721252048200,0.00834,64354.0,64353.0,2.08489411]
[1721252048437,0.00834,64354.0,64353.0,1.77040443]
[1721252048706,0.00834,64354.0,64353.0,2.43918043]
[1721252049145,0.00834,64354.0,64353.0,2.5090167]
[1721252049371,0.00834,64354.0,64353.0,2.66336627]
[1721252049607,0.00834,64354.0,64353.0,2.64594579]
[1721252049835,0.00834,64365.0,64364.0,1.087562]
[1721252050076,0.00834,64365.0,64364.0,1.64160701]
[1721252050077,0.00750594,64365.0,64364.0,1.64160701]
[1721252050326,0.00750594,64365.0,64364.0,1.95233901]
[1721252050575,0.00750594,64365.0,64364.0,2.03392028]
[1721252051023,0.00750594,64365.0,64364.0,2.01192028]
[1721252051264,0.00750594,64365.0,64364.0,2.06192028]
[1721252052608,0.00750594,64365.0,64364.0,1.96055701]
[1721252052825,0.00750594,64365.0,64364.0,2.06231948]
[1721252053488,0.00750594,64365.0,64364.0,2.01231948]
[1721252053722,0.00750594,64365.0,64364.0,2.19831948]
[1721252054002,0.00750594,64365.0,64364.0,2.55905148]
[1721252054243,0.00750594,64365.0,64364.0,2.57305148]
[1721252054477,0.00750594,64365.0,64364.0,2.67305148]
[1721252055016,0.00750594,64365.0,64364.0,2.65905148]
[1721252055881,0.00750594,64365.0,64364.0,2.64588172]
[1721252056085,0.00750594,64365.0,64364.0,2.65988172]
[1721252056310,0.04601935,64404.0,64394.0,0.0467]
[1721252056506,0.00833,64407.0,64394.0,0.0467]
[1721252056507,0.46304871,64402.0,64401.0,0.715831]
[1721252056704,0.00833,64407.0,64406.0,0.826325]
[1721252056947,0.00833,64407.0,64406.0,1.249055]
[1721252057256,0.00833,64407.0,64406.0,1.972115]
[1721252057896,0.00833,64407.0,64406.0,1.922115]
[1721252058098,0.00833,64407.0,64406.0,2.15926321]
[1721252058301,0.00834,64415.0,64414.0,1.597209]
[1721252058491,0.00834,64415.0,64414.0,1.86379074]
[1721252059532,0.00834,64415.0,64414.0,1.87779074]
[1721252059734,0.00805524,64415.0,64414.0,1.87779074]
[1721252059934,0.00805524,64415.0,64414.0,2.03214031]
[1721252061213,0.00805524,64415.0,64414.0,2.04614031]
[1721252062219,0.06857003,64431.0,64414.0,0.44893131]
[1721252062429,0.46304871,64432.0,64414.0,0.44893131]
[1721252062430,0.46304871,64432.0,64431.0,0.155204]
[1721252062641,0.1647,64433.0,64431.0,0.155204]
[1721252062642,0.1647,64433.0,64432.0,0.155202]
[1721252062849,0.1647,64433.0,64432.0,0.61998774]
[1721252063054,0.1647,64433.0,64432.0,0.93039174]
[1721252063257,0.1647,64433.0,64432.0,1.03235091]
[1721252064292,0.0628,64435.0,64433.0,0.775997]
[1721252064506,0.0628,64435.0,64433.0,0.93037874]
[1721252066393,0.0634,64442.0,64435.0,0.310389]
[1721252066632,0.0634,64442.0,64441.0,0.15518]
[1721252066838,0.0634,64442.0,64441.0,0.22609287]
[1721252067456,0.0634,64442.0,64441.0,0.69083561]
[1721252067877,0.1634,64442.0,64441.0,0.22529461]
[1721252068096,0.1445,64442.0,64436.0,0.155192]
[1721252068334,0.1445,64442.0,64437.0,0.30957174]
[1721252068749,0.1445,64442.0,64437.0,0.15438174]
[1721252068974,0.1445,64442.0,64438.0,0.07751657]
[1721252069178,0.1445,64442.0,64441.0,0.006]
[1721252069383,0.2445,64442.0,64439.0,0.15438174]
[1721252069582,0.1445,64442.0,64439.0,0.15438174]
[1721252070261,0.1445,64442.0,64441.0,0.003]
[1721252070448,0.2445,64442.0,64441.0,0.04800883]
[1721252070785,0.2445,64442.0,64441.0,0.03900883]
[1721252071806,0.2445,64442.0,64441.0,0.04200883]
[1721252072625,0.2445,64442.0,64441.0,0.04800883]
[1721252078443,0.2045,64442.0,64441.0,0.04800883]
[1721252078857,0.1645,64442.0,64441.0,0.04800883]
[1721252080006,0.1645,64442.0,64441.0,0.20239057]
[1721252080339,0.0645,64442.0,64441.0,0.20239057]
[1721252081626,0.1,64447.0,64442.0,0.002794]
[1721252081851,0.1892,64448.0,64443.0,0.06707366]
[1721252082058,0.1,64447.0,64443.0,0.06707366]
[1721252082849,0.1,64447.0,64443.0,0.2214554]
[1721252083221,0.1822,64448.0,64443.0,0.2214554]
[1721252085448,0.05641598,64447.0,64443.0,0.2214554]
[1721252085652,0.05641598,64446.0,64444.0,0.07260132]
[1721252085856,0.1,64446.0,64444.0,0.07260132]
[1721252086473,0.05643049,64445.0,64444.0,0.07260132]
[1721252088674,0.05643049,64445.0,64444.0,0.07460132]